[Event "Titled Tuesday Blitz April 12 Late 2022"]
[White "Ronka, Erik"]
[Black "Abdyzhapar, Asylbek"]
[WhiteFideId "505080"]
[BlackFideId "13800337"]
[WhiteElo "2264"]
[BlackElo "2331"]
[Result "1-0"]
[Round "06"]
[TimeControl "180+1"]
[Date "2022.04.13"]
[WhiteClock "0:00:10"]
[BlackClock "0:00:52"]

1. d4 {[%clk 0:03:00]}  Nf6 {[%clk 0:02:59]} 2. Nf3 {[%clk 0:03:01]}  e6 {[%clk 0:02:59]} 3. g3 {[%clk 0:03:02]}  c5 {[%clk 0:02:58]} 4. Bg2 {[%clk 0:03:02]}  cxd4 {[%clk 0:02:58]} 5. O-O {[%clk 0:03:02]}  a6 {[%clk 0:02:56]} 6. Nxd4 {[%clk 0:03:02]}  Qc7 {[%clk 0:02:57]} 7. b3 {[%clk 0:02:47]}  d5 {[%clk 0:02:56]} 8. Bb2 {[%clk 0:02:46]}  Nbd7 {[%clk 0:02:52]} 9. Nd2 {[%clk 0:02:46]}  e5 {[%clk 0:02:33]} 10. N4f3 {[%clk 0:02:46]}  e4 {[%clk 0:02:33]} 11. Nd4 {[%clk 0:02:46]}  b5 {[%clk 0:02:29]} 12. c4 {[%clk 0:02:40]}  bxc4 {[%clk 0:02:28]} 13. bxc4 {[%clk 0:02:40]}  Rb8 {[%clk 0:02:28]} 14. Rb1 {[%clk 0:02:36]}  Bc5 {[%clk 0:02:23]} 15. e3 {[%clk 0:02:30]}  Ne5 {[%clk 0:02:15]} 16. cxd5 {[%clk 0:02:21]}  Bg4 {[%clk 0:02:13]} 17. Qa4+ {[%clk 0:02:17]}  Bd7 {[%clk 0:02:12]} 18. Qc2 {[%clk 0:02:09]}  Nd3 {[%clk 0:01:54]} 19. Nxe4 {[%clk 0:02:00]}  Nxe4 {[%clk 0:01:54]} 20. Bxe4 {[%clk 0:02:01]}  Nxb2 {[%clk 0:01:52]} 21. Rxb2 {[%clk 0:01:58]}  Rxb2 {[%clk 0:01:52]} 22. Qxb2 {[%clk 0:01:59]}  O-O {[%clk 0:01:51]} 23. Nb3 {[%clk 0:01:53]}  Bd6 {[%clk 0:01:50]} 24. Rc1 {[%clk 0:01:51]}  Qd8 {[%clk 0:01:50]} 25. Qc2 {[%clk 0:01:50]}  h5 {[%clk 0:01:49]} 26. Nd4 {[%clk 0:01:49]}  h4 {[%clk 0:01:49]} 27. Bf5 {[%clk 0:01:48]}  h3 {[%clk 0:01:46]} 28. Bxd7 {[%clk 0:01:47]}  Qxd7 {[%clk 0:01:46]} 29. Qf5 {[%clk 0:01:47]}  Qa4 {[%clk 0:01:46]} 30. Qxh3 {[%clk 0:01:27]}  Qxa2 {[%clk 0:01:45]} 31. Qf5 {[%clk 0:01:04]}  a5 {[%clk 0:01:44]} 32. Rc6 {[%clk 0:00:31]}  Bb4 {[%clk 0:01:41]} 33. d6 {[%clk 0:00:30]}  g6 {[%clk 0:01:33]} 34. Qe4 {[%clk 0:00:20]}  a4 {[%clk 0:01:11]} 35. d7 {[%clk 0:00:20]}  a3 {[%clk 0:01:11]} 36. Rc8 {[%clk 0:00:18]}  Qa1+ {[%clk 0:01:07]} 37. Kg2 {[%clk 0:00:16]}  a2 {[%clk 0:01:08]} 38. Rxf8+ {[%clk 0:00:15]}  Bxf8 {[%clk 0:01:07]} 39. d8=Q {[%clk 0:00:16]}  Qb1 {[%clk 0:01:05]} 40. Qee8 {[%clk 0:00:14]}  Qb7+ {[%clk 0:01:02]} 41. Kh3 {[%clk 0:00:13]}  Qb4 {[%clk 0:00:52]} 42. Qa8 {[%clk 0:00:11]}  Qc4 {[%clk 0:00:52]} 43. Qxf8+ {[%clk 0:00:10]} 1-0


[Site "https://www.chess.com"]

[Event "Titled Tuesday Blitz April 12 Late 2022"]
[White "Rozman, Levy"]
[Black "O`Gorman, Tom"]
[WhiteFideId "2039877"]
[BlackFideId "2508249"]
[WhiteElo "2376"]
[BlackElo "2247"]
[Result "1/2-1/2"]
[Round "06"]
[TimeControl "180+1"]
[Date "2022.04.12"]
[WhiteClock "0:00:05"]
[BlackClock "0:00:21"]

1. d4 {[%clk 0:03:00]}  Nf6 {[%clk 0:02:59]} 2. Bg5 {[%clk 0:02:57]}  Ne4 {[%clk 0:02:59]} 3. h4 {[%clk 0:02:57]}  Nxg5 {[%clk 0:02:50]} 4. hxg5 {[%clk 0:02:58]}  e6 {[%clk 0:02:48]} 5. g6 {[%clk 0:02:57]}  fxg6 {[%clk 0:02:49]} 6. e3 {[%clk 0:02:57]}  d5 {[%clk 0:02:47]} 7. Bd3 {[%clk 0:02:56]}  Qf6 {[%clk 0:02:46]} 8. f4 {[%clk 0:02:56]}  c5 {[%clk 0:02:45]} 9. c3 {[%clk 0:02:57]}  Nc6 {[%clk 0:02:45]} 10. Nf3 {[%clk 0:02:57]}  Bd7 {[%clk 0:02:42]} 11. a3 {[%clk 0:02:56]}  O-O-O {[%clk 0:02:42]} 12. b4 {[%clk 0:02:56]}  cxd4 {[%clk 0:02:38]} 13. cxd4 {[%clk 0:02:55]}  Kb8 {[%clk 0:02:39]} 14. Nbd2 {[%clk 0:02:47]}  Bd6 {[%clk 0:02:34]} 15. Nb3 {[%clk 0:02:34]}  h6 {[%clk 0:02:33]} 16. Ne5 {[%clk 0:02:26]}  g5 {[%clk 0:02:27]} 17. g3 {[%clk 0:02:26]}  gxf4 {[%clk 0:02:25]} 18. gxf4 {[%clk 0:02:24]}  g5 {[%clk 0:02:23]} 19. Qg4 {[%clk 0:01:48]}  gxf4 {[%clk 0:01:45]} 20. exf4 {[%clk 0:01:42]}  Rhf8 {[%clk 0:01:44]} 21. Rf1 {[%clk 0:01:30]}  Bxe5 {[%clk 0:01:18]} 22. fxe5 {[%clk 0:01:24]}  Qg5 {[%clk 0:01:15]} 23. Qxg5 {[%clk 0:01:19]}  hxg5 {[%clk 0:01:16]} 24. b5 {[%clk 0:01:14]}  Rxf1+ {[%clk 0:01:09]} 25. Kxf1 {[%clk 0:01:13]}  Ne7 {[%clk 0:01:08]} 26. Nc5 {[%clk 0:01:09]}  Bc8 {[%clk 0:01:07]} 27. Kg2 {[%clk 0:01:00]}  b6 {[%clk 0:01:07]} 28. Nb3 {[%clk 0:01:01]}  Rf8 {[%clk 0:00:57]} 29. Rh1 {[%clk 0:00:59]}  Nf5 {[%clk 0:00:51]} 30. a4 {[%clk 0:00:44]}  Nh4+ {[%clk 0:00:49]} 31. Kg1 {[%clk 0:00:42]}  Rf3 {[%clk 0:00:49]} 32. Nc1 {[%clk 0:00:39]}  Bd7 {[%clk 0:00:39]} 33. Rh2 {[%clk 0:00:35]}  Be8 {[%clk 0:00:38]} 34. Rf2 {[%clk 0:00:31]}  Bh5 {[%clk 0:00:35]} 35. Kf1 {[%clk 0:00:20]}  Kc7 {[%clk 0:00:34]} 36. Be2 {[%clk 0:00:16]}  Rxf2+ {[%clk 0:00:32]} 37. Kxf2 {[%clk 0:00:17]}  Bxe2 {[%clk 0:00:26]} 38. Nxe2 {[%clk 0:00:18]}  Nf5 {[%clk 0:00:18]} 39. Kf3 {[%clk 0:00:19]}  Kd7 {[%clk 0:00:19]} 40. Kg4 {[%clk 0:00:18]}  Ne3+ {[%clk 0:00:19]} 41. Kxg5 {[%clk 0:00:18]}  Nc4 {[%clk 0:00:19]} 42. Kf6 {[%clk 0:00:16]}  Ne3 {[%clk 0:00:17]} 43. Nf4 {[%clk 0:00:13]}  Ng4+ {[%clk 0:00:17]} 44. Kf7 {[%clk 0:00:12]}  Nh6+ {[%clk 0:00:17]} 45. Kf6 {[%clk 0:00:10]}  Ng4+ {[%clk 0:00:17]} 46. Kg7 {[%clk 0:00:10]}  Ke7 {[%clk 0:00:16]} 47. Ng6+ {[%clk 0:00:10]}  Ke8 {[%clk 0:00:16]} 48. Nh8 {[%clk 0:00:08]}  Ne3 {[%clk 0:00:16]} 49. Kf6 {[%clk 0:00:08]}  Kd7 {[%clk 0:00:17]} 50. Ng6 {[%clk 0:00:08]}  Ng4+ {[%clk 0:00:17]} 51. Kf7 {[%clk 0:00:08]}  Nh6+ {[%clk 0:00:17]} 52. Kg7 {[%clk 0:00:08]}  Nf5+ {[%clk 0:00:17]} 53. Kf6 {[%clk 0:00:08]}  Nxd4 {[%clk 0:00:18]} 54. Nf8+ {[%clk 0:00:08]}  Ke8 {[%clk 0:00:18]} 55. Ng6 {[%clk 0:00:05]}  Kd7 {[%clk 0:00:18]} 56. Nf4 {[%clk 0:00:05]}  Ke8 {[%clk 0:00:17]} 57. Nd3 {[%clk 0:00:05]}  Nf3 {[%clk 0:00:16]} 58. Kxe6 {[%clk 0:00:04]}  d4 {[%clk 0:00:17]} 59. Kd6 {[%clk 0:00:05]}  Ng5 {[%clk 0:00:16]} 60. e6 {[%clk 0:00:05]}  Ne4+ {[%clk 0:00:17]} 61. Ke5 {[%clk 0:00:04]}  Nc5 {[%clk 0:00:17]} 62. Kxd4 {[%clk 0:00:01]}  Nxa4 {[%clk 0:00:17]} 63. Ne5 {[%clk 0:00:01]}  Ke7 {[%clk 0:00:17]} 64. Kd5 {[%clk 0:00:02]}  Nc3+ {[%clk 0:00:16]} 65. Kc6 {[%clk 0:00:03]}  Nxb5 {[%clk 0:00:17]} 66. Kxb5 {[%clk 0:00:03]}  Kxe6 {[%clk 0:00:18]} 67. Nc6 {[%clk 0:00:03]}  Kd6 {[%clk 0:00:19]} 68. Nxa7 {[%clk 0:00:04]}  Kc7 {[%clk 0:00:20]} 69. Ka6 {[%clk 0:00:04]}  Kd6 {[%clk 0:00:20]} 70. Nb5+ {[%clk 0:00:04]}  Kd5 {[%clk 0:00:21]} 71. Kxb6 {[%clk 0:00:05]} 1/2-1/2


[Site "https://www.chess.com"]

[Event "Titled Tuesday Blitz April 12 Late 2022"]
[White "Rustemov, Alexander"]
[Black "Tregubov, Pavel V."]
[WhiteFideId "4119002"]
[BlackFideId "4115341"]
[WhiteElo "2794"]
[BlackElo "2341"]
[Result "0-1"]
[Round "06"]
[TimeControl "180+1"]
[Date "2022.04.12"]
[WhiteClock "0:00:02"]
[BlackClock "0:00:08"]

1. d4 {[%clk 0:03:00]}  Nf6 {[%clk 0:02:59]} 2. c4 {[%clk 0:03:00]}  e6 {[%clk 0:02:59]} 3. g3 {[%clk 0:02:59]}  Bb4+ {[%clk 0:02:58]} 4. Bd2 {[%clk 0:02:59]}  Qe7 {[%clk 0:02:57]} 5. Bg2 {[%clk 0:02:58]}  Nc6 {[%clk 0:02:54]} 6. e3 {[%clk 0:02:56]}  d5 {[%clk 0:02:44]} 7. a3 {[%clk 0:02:52]}  Bxd2+ {[%clk 0:02:43]} 8. Nxd2 {[%clk 0:02:53]}  O-O {[%clk 0:02:41]} 9. Ngf3 {[%clk 0:02:49]}  Rd8 {[%clk 0:02:39]} 10. O-O {[%clk 0:02:35]}  e5 {[%clk 0:02:33]} 11. cxd5 {[%clk 0:01:53]}  Nxd5 {[%clk 0:02:30]} 12. e4 {[%clk 0:01:42]}  Nb6 {[%clk 0:02:20]} 13. d5 {[%clk 0:01:41]}  Nb8 {[%clk 0:02:01]} 14. Qc2 {[%clk 0:01:42]}  c6 {[%clk 0:01:58]} 15. Rac1 {[%clk 0:01:33]}  cxd5 {[%clk 0:01:52]} 16. exd5 {[%clk 0:01:32]}  Na6 {[%clk 0:01:48]} 17. Rfe1 {[%clk 0:01:28]}  f6 {[%clk 0:01:31]} 18. Nc4 {[%clk 0:01:25]}  Nxd5 {[%clk 0:01:28]} 19. Ncxe5 {[%clk 0:01:19]}  fxe5 {[%clk 0:01:24]} 20. Rxe5 {[%clk 0:01:17]}  Qf6 {[%clk 0:00:43]} 21. Qb3 {[%clk 0:01:04]}  Be6 {[%clk 0:00:39]} 22. Rce1 {[%clk 0:01:00]}  Nac7 {[%clk 0:00:34]} 23. Ng5 {[%clk 0:00:56]}  Nf4 {[%clk 0:00:30]} 24. Nxe6 {[%clk 0:00:51]}  Nfxe6 {[%clk 0:00:30]} 25. Bh3 {[%clk 0:00:36]}  Rd2 {[%clk 0:00:26]} 26. Bxe6+ {[%clk 0:00:34]}  Nxe6 {[%clk 0:00:26]} 27. Qxe6+ {[%clk 0:00:33]}  Qxe6 {[%clk 0:00:26]} 28. Rxe6 {[%clk 0:00:34]}  Rxb2 {[%clk 0:00:26]} 29. R1e2 {[%clk 0:00:15]}  Rxe2 {[%clk 0:00:23]} 30. Rxe2 {[%clk 0:00:15]}  Kf7 {[%clk 0:00:23]} 31. Rc2 {[%clk 0:00:15]}  Re8 {[%clk 0:00:24]} 32. a4 {[%clk 0:00:15]}  Ke6 {[%clk 0:00:21]} 33. a5 {[%clk 0:00:13]}  Kd6 {[%clk 0:00:20]} 34. h4 {[%clk 0:00:09]}  Re5 {[%clk 0:00:20]} 35. Ra2 {[%clk 0:00:07]}  b5 {[%clk 0:00:14]} 36. axb6 {[%clk 0:00:06]}  axb6 {[%clk 0:00:15]} 37. Ra7 {[%clk 0:00:06]}  Re7 {[%clk 0:00:15]} 38. Ra1 {[%clk 0:00:04]}  b5 {[%clk 0:00:14]} 39. Kg2 {[%clk 0:00:04]}  b4 {[%clk 0:00:14]} 40. Rc1 {[%clk 0:00:03]}  Rb7 {[%clk 0:00:13]} 41. Kf3 {[%clk 0:00:04]}  b3 {[%clk 0:00:13]} 42. Ke4 {[%clk 0:00:04]}  b2 {[%clk 0:00:13]} 43. Rb1 {[%clk 0:00:04]}  Kc5 {[%clk 0:00:13]} 44. Kd3 {[%clk 0:00:03]}  Kd5 {[%clk 0:00:13]} 45. f3 {[%clk 0:00:02]}  h5 {[%clk 0:00:12]} 46. g4 {[%clk 0:00:02]}  Ke5 {[%clk 0:00:09]} 47. g5 {[%clk 0:00:01]}  Kf4 {[%clk 0:00:09]} 48. Kc2 {[%clk 0:00:01]}  Kxf3 {[%clk 0:00:08]} 49. Rxb2 {[%clk 0:00:01]}  Rxb2+ {[%clk 0:00:07]} 50. Kxb2 {[%clk 0:00:02]}  Kg4 {[%clk 0:00:08]} 0-1


[Site "https://www.chess.com"]

[Event "Titled Tuesday Blitz April 12 Late 2022"]
[White "Sadilek, Peter"]
[Black "Goryachkina, Aleksandra"]
[WhiteFideId "1616439"]
[BlackFideId "4147103"]
[WhiteElo "2341"]
[BlackElo "2652"]
[Result "1/2-1/2"]
[Round "06"]
[TimeControl "180+1"]
[Date "2022.04.13"]
[WhiteClock "0:00:04"]
[BlackClock "0:00:03"]

1. d4 {[%clk 0:02:59]}  d5 {[%clk 0:02:58]} 2. c4 {[%clk 0:02:59]}  dxc4 {[%clk 0:02:58]} 3. e3 {[%clk 0:02:57]}  Nf6 {[%clk 0:02:57]} 4. Bxc4 {[%clk 0:02:58]}  e6 {[%clk 0:02:57]} 5. Nf3 {[%clk 0:02:58]}  c5 {[%clk 0:02:57]} 6. O-O {[%clk 0:02:59]}  Nc6 {[%clk 0:02:56]} 7. Nc3 {[%clk 0:02:44]}  a6 {[%clk 0:02:52]} 8. Qe2 {[%clk 0:02:15]}  b5 {[%clk 0:02:47]} 9. Bb3 {[%clk 0:02:06]}  Bb7 {[%clk 0:02:41]} 10. Rd1 {[%clk 0:02:03]}  c4 {[%clk 0:02:04]} 11. Bc2 {[%clk 0:02:03]}  Be7 {[%clk 0:01:57]} 12. e4 {[%clk 0:02:01]}  O-O {[%clk 0:01:31]} 13. a3 {[%clk 0:01:51]}  Re8 {[%clk 0:01:23]} 14. h4 {[%clk 0:01:43]}  Qc7 {[%clk 0:01:13]} 15. e5 {[%clk 0:01:41]}  Nd5 {[%clk 0:01:08]} 16. Qe4 {[%clk 0:01:14]}  g6 {[%clk 0:01:05]} 17. h5 {[%clk 0:00:52]}  Nxc3 {[%clk 0:01:02]} 18. bxc3 {[%clk 0:00:52]}  Nb4 {[%clk 0:00:59]} 19. Qe2 {[%clk 0:00:52]}  Nxc2 {[%clk 0:00:58]} 20. Qxc2 {[%clk 0:00:53]}  Bxf3 {[%clk 0:00:48]} 21. gxf3 {[%clk 0:00:54]}  Bf8 {[%clk 0:00:43]} 22. Qe4 {[%clk 0:00:53]}  Bg7 {[%clk 0:00:37]} 23. hxg6 {[%clk 0:00:51]}  fxg6 {[%clk 0:00:36]} 24. Kg2 {[%clk 0:00:52]}  Qf7 {[%clk 0:00:32]} 25. a4 {[%clk 0:00:43]}  Rab8 {[%clk 0:00:29]} 26. axb5 {[%clk 0:00:43]}  axb5 {[%clk 0:00:29]} 27. Ba3 {[%clk 0:00:41]}  Bf8 {[%clk 0:00:29]} 28. Bxf8 {[%clk 0:00:16]}  Rxf8 {[%clk 0:00:28]} 29. Ra6 {[%clk 0:00:16]}  b4 {[%clk 0:00:18]} 30. cxb4 {[%clk 0:00:15]}  Rxb4 {[%clk 0:00:19]} 31. d5 {[%clk 0:00:13]}  exd5 {[%clk 0:00:12]} 32. Rxd5 {[%clk 0:00:13]}  c3 {[%clk 0:00:07]} 33. e6 {[%clk 0:00:09]}  Qe7 {[%clk 0:00:04]} 34. Qe5 {[%clk 0:00:05]}  Rbf4 {[%clk 0:00:02]} 35. Rd7 {[%clk 0:00:04]}  Qf6 {[%clk 0:00:01]} 36. Qxf6 {[%clk 0:00:03]}  R4xf6 {[%clk 0:00:01]} 37. Rd3 {[%clk 0:00:03]}  Re8 {[%clk 0:00:01]} 38. Rc6 {[%clk 0:00:03]}  Rfxe6 {[%clk 0:00:01]} 39. Rxe6 {[%clk 0:00:04]}  Rxe6 {[%clk 0:00:02]} 40. Rxc3 {[%clk 0:00:05]}  Re7 {[%clk 0:00:03]} 41. Re3 {[%clk 0:00:05]}  Rf7 {[%clk 0:00:02]} 42. Re4 {[%clk 0:00:05]}  Kg7 {[%clk 0:00:03]} 43. Rg4 {[%clk 0:00:05]}  h5 {[%clk 0:00:03]} 44. Rd4 {[%clk 0:00:06]}  Rf5 {[%clk 0:00:04]} 45. Kg3 {[%clk 0:00:06]}  Kh6 {[%clk 0:00:04]} 46. Rd6 {[%clk 0:00:07]}  Kg5 {[%clk 0:00:04]} 47. Rd4 {[%clk 0:00:07]}  Kf6 {[%clk 0:00:04]} 48. f4 {[%clk 0:00:07]}  Rb5 {[%clk 0:00:04]} 49. Rd6+ {[%clk 0:00:07]}  Kg7 {[%clk 0:00:04]} 50. Ra6 {[%clk 0:00:08]}  Kh6 {[%clk 0:00:04]} 51. Rc6 {[%clk 0:00:07]}  Rb3+ {[%clk 0:00:03]} 52. f3 {[%clk 0:00:07]}  Rb5 {[%clk 0:00:03]} 53. Rd6 {[%clk 0:00:04]}  Rf5 {[%clk 0:00:03]} 54. Rc6 {[%clk 0:00:04]} 1/2-1/2


[Site "https://www.chess.com"]

[Event "Titled Tuesday Blitz April 12 Late 2022"]
[White "Schekachikhin, Maksim"]
[Black "Sailer, Mike"]
[WhiteFideId "24177830"]
[BlackFideId "2012901"]
[WhiteElo "2230"]
[BlackElo "2109"]
[Result "1-0"]
[Round "06"]
[TimeControl "180+1"]
[Date "2022.04.13"]
[WhiteClock "0:01:35"]
[BlackClock "0:00:05"]

1. d4 {[%clk 0:03:00]}  d5 {[%clk 0:02:59]} 2. c4 {[%clk 0:03:01]}  Bf5 {[%clk 0:02:58]} 3. cxd5 {[%clk 0:02:58]}  Bxb1 {[%clk 0:02:58]} 4. Qa4+ {[%clk 0:02:58]}  Qd7 {[%clk 0:02:58]} 5. Qxd7+ {[%clk 0:02:56]}  Nxd7 {[%clk 0:02:59]} 6. Rxb1 {[%clk 0:02:57]}  Ngf6 {[%clk 0:02:58]} 7. Nf3 {[%clk 0:02:55]}  Nb6 {[%clk 0:02:57]} 8. e3 {[%clk 0:02:54]}  Nbxd5 {[%clk 0:02:53]} 9. Bd2 {[%clk 0:02:53]}  e6 {[%clk 0:02:49]} 10. Bd3 {[%clk 0:02:51]}  Bb4 {[%clk 0:02:48]} 11. Ke2 {[%clk 0:02:49]}  Bxd2 {[%clk 0:02:48]} 12. Nxd2 {[%clk 0:02:50]}  O-O-O {[%clk 0:02:39]} 13. Rhc1 {[%clk 0:02:49]}  Nb4 {[%clk 0:02:34]} 14. Bc4 {[%clk 0:02:49]}  Kb8 {[%clk 0:02:19]} 15. a3 {[%clk 0:02:49]}  Nbd5 {[%clk 0:02:16]} 16. b4 {[%clk 0:02:48]}  g5 {[%clk 0:02:05]} 17. a4 {[%clk 0:02:46]}  g4 {[%clk 0:02:01]} 18. a5 {[%clk 0:02:46]}  h5 {[%clk 0:02:00]} 19. a6 {[%clk 0:02:45]}  b6 {[%clk 0:01:53]} 20. Bxd5 {[%clk 0:02:35]}  Nxd5 {[%clk 0:01:49]} 21. Nc4 {[%clk 0:02:34]}  f6 {[%clk 0:01:44]} 22. Na3 {[%clk 0:02:23]}  h4 {[%clk 0:01:40]} 23. g3 {[%clk 0:02:21]}  hxg3 {[%clk 0:01:39]} 24. hxg3 {[%clk 0:02:22]}  Rh2 {[%clk 0:01:33]} 25. Rc6 {[%clk 0:02:21]}  Rd6 {[%clk 0:01:22]} 26. Rxd6 {[%clk 0:02:21]}  cxd6 {[%clk 0:01:22]} 27. Nb5 {[%clk 0:02:21]}  Rh7 {[%clk 0:01:14]} 28. Kd3 {[%clk 0:02:13]}  Rh2 {[%clk 0:01:09]} 29. Rb2 {[%clk 0:02:13]}  e5 {[%clk 0:00:54]} 30. Nxd6 {[%clk 0:02:12]}  exd4 {[%clk 0:00:52]} 31. Kxd4 {[%clk 0:02:12]}  Nc7 {[%clk 0:00:45]} 32. b5 {[%clk 0:02:11]}  Rh5 {[%clk 0:00:40]} 33. Ne4 {[%clk 0:02:06]}  Rd5+ {[%clk 0:00:38]} 34. Kc4 {[%clk 0:02:06]}  f5 {[%clk 0:00:36]} 35. Nc3 {[%clk 0:02:06]}  Rc5+ {[%clk 0:00:34]} 36. Kb4 {[%clk 0:02:06]}  Kc8 {[%clk 0:00:26]} 37. Rd2 {[%clk 0:02:06]}  Ne6 {[%clk 0:00:16]} 38. Rd6 {[%clk 0:02:05]}  Ng5 {[%clk 0:00:15]} 39. Rf6 {[%clk 0:02:02]}  Nh3 {[%clk 0:00:10]} 40. Rf8+ {[%clk 0:01:59]}  Kc7 {[%clk 0:00:10]} 41. Rf7+ {[%clk 0:01:59]}  Kb8 {[%clk 0:00:10]} 42. e4 {[%clk 0:01:58]}  Nxf2 {[%clk 0:00:06]} 43. Nd5 {[%clk 0:01:51]}  Nxe4 {[%clk 0:00:04]} 44. Rf8+ {[%clk 0:01:51]}  Rc8 {[%clk 0:00:05]} 45. Rxf5 {[%clk 0:01:48]}  Rc4+ {[%clk 0:00:03]} 46. Kb3 {[%clk 0:01:40]}  Nd6 {[%clk 0:00:04]} 47. Rf8+ {[%clk 0:01:39]}  Rc8 {[%clk 0:00:04]} 48. Rf6 {[%clk 0:01:35]}  Ne4 {[%clk 0:00:05]} 49. Rf7 {[%clk 0:01:33]}  Nxg3 {[%clk 0:00:04]} 50. Rb7+ {[%clk 0:01:33]}  Ka8 {[%clk 0:00:05]} 51. Nc7+ {[%clk 0:01:34]}  Rxc7 {[%clk 0:00:06]} 52. Rxc7 {[%clk 0:01:34]}  Ne4 {[%clk 0:00:05]} 53. Rc8# {[%clk 0:01:35]} 1-0


[Site "https://www.chess.com"]

[Event "Titled Tuesday Blitz April 12 Late 2022"]
[White "Senthilkumar, Pranav"]
[Black "Ashiev, Eduard"]
[WhiteFideId "2083477"]
[BlackFideId "4130090"]
[WhiteElo "2390"]
[BlackElo "2004"]
[Result "0-1"]
[Round "06"]
[TimeControl "180+1"]
[Date "2022.04.13"]
[WhiteClock "0:00:06"]
[BlackClock "0:00:04"]

1. Nf3 {[%clk 0:03:00]}  c5 {[%clk 0:02:58]} 2. e4 {[%clk 0:03:00]}  d6 {[%clk 0:02:58]} 3. d4 {[%clk 0:03:00]}  cxd4 {[%clk 0:02:58]} 4. Nxd4 {[%clk 0:03:01]}  Nf6 {[%clk 0:02:59]} 5. Nc3 {[%clk 0:03:02]}  e6 {[%clk 0:02:59]} 6. Be3 {[%clk 0:03:01]}  a6 {[%clk 0:02:58]} 7. Be2 {[%clk 0:03:01]}  b5 {[%clk 0:02:53]} 8. a3 {[%clk 0:02:55]}  Bb7 {[%clk 0:02:53]} 9. Bf3 {[%clk 0:02:53]}  Nbd7 {[%clk 0:02:51]} 10. O-O {[%clk 0:02:53]}  Be7 {[%clk 0:02:45]} 11. Nde2 {[%clk 0:02:50]}  Qc7 {[%clk 0:02:33]} 12. Ng3 {[%clk 0:02:40]}  Ne5 {[%clk 0:02:30]} 13. Be2 {[%clk 0:02:39]}  Nc4 {[%clk 0:02:24]} 14. Bxc4 {[%clk 0:02:30]}  Qxc4 {[%clk 0:02:24]} 15. f3 {[%clk 0:02:26]}  O-O {[%clk 0:02:21]} 16. Qd2 {[%clk 0:02:25]}  Rac8 {[%clk 0:02:20]} 17. Qf2 {[%clk 0:02:20]}  Nd7 {[%clk 0:02:14]} 18. f4 {[%clk 0:02:18]}  Bh4 {[%clk 0:02:03]} 19. f5 {[%clk 0:02:04]}  Ne5 {[%clk 0:01:54]} 20. Qf4 {[%clk 0:01:50]}  Be7 {[%clk 0:01:18]} 21. Nh5 {[%clk 0:01:42]}  exf5 {[%clk 0:01:04]} 22. Qxf5 {[%clk 0:01:15]}  f6 {[%clk 0:00:53]} 23. Nd5 {[%clk 0:00:41]}  Bxd5 {[%clk 0:00:45]} 24. exd5 {[%clk 0:00:41]}  Qxd5 {[%clk 0:00:41]} 25. Nf4 {[%clk 0:00:41]}  Nf3+ {[%clk 0:00:37]} 26. Rxf3 {[%clk 0:00:37]}  Qxf5 {[%clk 0:00:37]} 27. Raf1 {[%clk 0:00:37]}  Qe4 {[%clk 0:00:28]} 28. c3 {[%clk 0:00:34]}  d5 {[%clk 0:00:24]} 29. Kh1 {[%clk 0:00:32]}  Bd6 {[%clk 0:00:20]} 30. Nh3 {[%clk 0:00:26]}  Rce8 {[%clk 0:00:19]} 31. Bd4 {[%clk 0:00:24]}  Be5 {[%clk 0:00:16]} 32. Bc5 {[%clk 0:00:23]}  Rf7 {[%clk 0:00:14]} 33. Nf2 {[%clk 0:00:23]}  Qc2 {[%clk 0:00:11]} 34. Nd3 {[%clk 0:00:22]}  Bc7 {[%clk 0:00:09]} 35. h3 {[%clk 0:00:21]}  Re2 {[%clk 0:00:07]} 36. Rg1 {[%clk 0:00:17]}  Rd2 {[%clk 0:00:06]} 37. Nb4 {[%clk 0:00:16]}  Qxb2 {[%clk 0:00:05]} 38. Nxa6 {[%clk 0:00:16]}  Be5 {[%clk 0:00:04]} 39. Bb4 {[%clk 0:00:16]}  Qc2 {[%clk 0:00:04]} 40. Nc5 {[%clk 0:00:15]}  Rd1 {[%clk 0:00:03]} 41. Rff1 {[%clk 0:00:13]}  Rxf1 {[%clk 0:00:03]} 42. Rxf1 {[%clk 0:00:14]}  h6 {[%clk 0:00:03]} 43. Ne6 {[%clk 0:00:13]}  Qe2 {[%clk 0:00:04]} 44. Rg1 {[%clk 0:00:13]}  Rd7 {[%clk 0:00:03]} 45. Nd4 {[%clk 0:00:11]}  Bxd4 {[%clk 0:00:03]} 46. cxd4 {[%clk 0:00:12]}  f5 {[%clk 0:00:03]} 47. Bc5 {[%clk 0:00:13]}  f4 {[%clk 0:00:04]} 48. Bb4 {[%clk 0:00:05]}  Rf7 {[%clk 0:00:04]} 49. Bc5 {[%clk 0:00:04]}  f3 {[%clk 0:00:04]} 50. gxf3 {[%clk 0:00:05]}  Rxf3 {[%clk 0:00:04]} 51. Rg2 {[%clk 0:00:06]}  Rf1+ {[%clk 0:00:04]} 52. Kh2 {[%clk 0:00:06]}  Qf3 {[%clk 0:00:04]} 53. h4 {[%clk 0:00:04]}  Qf4+ {[%clk 0:00:04]} 54. Kh3 {[%clk 0:00:05]}  Rh1+ {[%clk 0:00:04]} 55. Rh2 {[%clk 0:00:06]}  Rxh2# {[%clk 0:00:04]} 0-1


[Site "https://www.chess.com"]

[Event "Titled Tuesday Blitz April 12 Late 2022"]
[White "Seo, Jung Min"]
[Black "Bachmann, Axel"]
[WhiteFideId "1734687"]
[BlackFideId "3700488"]
[WhiteElo "2684"]
[BlackElo "2491"]
[Result "1-0"]
[Round "06"]
[TimeControl "180+1"]
[Date "2022.04.13"]
[WhiteClock "0:00:13"]
[BlackClock "0:00:01"]

1. d4 {[%clk 0:03:00]}  Nf6 {[%clk 0:02:58]} 2. c4 {[%clk 0:03:01]}  g6 {[%clk 0:02:58]} 3. Nf3 {[%clk 0:03:01]}  Bg7 {[%clk 0:02:58]} 4. g3 {[%clk 0:03:01]}  c5 {[%clk 0:02:57]} 5. Bg2 {[%clk 0:02:59]}  cxd4 {[%clk 0:02:58]} 6. O-O {[%clk 0:02:57]}  O-O {[%clk 0:02:59]} 7. Nxd4 {[%clk 0:02:57]}  Nc6 {[%clk 0:02:57]} 8. Nc3 {[%clk 0:02:57]}  Qa5 {[%clk 0:02:57]} 9. Nb3 {[%clk 0:02:45]}  Qh5 {[%clk 0:02:55]} 10. h3 {[%clk 0:02:43]}  d6 {[%clk 0:02:53]} 11. g4 {[%clk 0:02:38]}  Bxg4 {[%clk 0:02:53]} 12. hxg4 {[%clk 0:02:38]}  Nxg4 {[%clk 0:02:54]} 13. Bf4 {[%clk 0:02:33]}  Be5 {[%clk 0:02:48]} 14. Qd2 {[%clk 0:02:32]}  g5 {[%clk 0:02:44]} 15. Bxe5 {[%clk 0:02:31]}  dxe5 {[%clk 0:02:39]} 16. Rfd1 {[%clk 0:02:26]}  Qh2+ {[%clk 0:02:00]} 17. Kf1 {[%clk 0:02:25]}  Qh4 {[%clk 0:02:01]} 18. Qe1 {[%clk 0:02:23]}  f5 {[%clk 0:01:54]} 19. Nd5 {[%clk 0:02:17]}  f4 {[%clk 0:01:48]} 20. f3 {[%clk 0:02:13]}  Nh2+ {[%clk 0:01:16]} 21. Kg1 {[%clk 0:02:13]}  Qh6 {[%clk 0:01:12]} 22. e3 {[%clk 0:01:45]}  g4 {[%clk 0:01:06]} 23. exf4 {[%clk 0:01:42]}  gxf3 {[%clk 0:01:01]} 24. Qg3+ {[%clk 0:01:41]}  Kh8 {[%clk 0:01:00]} 25. Qxh2 {[%clk 0:01:41]}  Qxh2+ {[%clk 0:00:54]} 26. Kxh2 {[%clk 0:01:41]}  fxg2 {[%clk 0:00:55]} 27. Kxg2 {[%clk 0:01:20]}  exf4 {[%clk 0:00:55]} 28. Re1 {[%clk 0:01:20]}  e5 {[%clk 0:00:53]} 29. Kf3 {[%clk 0:01:19]}  Rg8 {[%clk 0:00:51]} 30. Rg1 {[%clk 0:01:18]}  Rgf8 {[%clk 0:00:41]} 31. Rae1 {[%clk 0:01:15]}  Rae8 {[%clk 0:00:40]} 32. Re4 {[%clk 0:01:11]}  Rf5 {[%clk 0:00:29]} 33. Nc5 {[%clk 0:00:55]}  Nd4+ {[%clk 0:00:26]} 34. Kf2 {[%clk 0:00:55]}  Rh5 {[%clk 0:00:16]} 35. Nf6 {[%clk 0:00:44]}  Rh2+ {[%clk 0:00:15]} 36. Rg2 {[%clk 0:00:44]}  Rxg2+ {[%clk 0:00:16]} 37. Kxg2 {[%clk 0:00:45]}  Rf8 {[%clk 0:00:16]} 38. Nfd7 {[%clk 0:00:41]}  f3+ {[%clk 0:00:16]} 39. Kf2 {[%clk 0:00:41]}  Rg8 {[%clk 0:00:16]} 40. Nxe5 {[%clk 0:00:40]}  Rg2+ {[%clk 0:00:16]} 41. Kf1 {[%clk 0:00:39]}  Nf5 {[%clk 0:00:06]} 42. Nxf3 {[%clk 0:00:31]}  Rxb2 {[%clk 0:00:06]} 43. Re5 {[%clk 0:00:20]}  Ng3+ {[%clk 0:00:03]} 44. Ke1 {[%clk 0:00:20]}  Rxa2 {[%clk 0:00:04]} 45. Nxb7 {[%clk 0:00:20]}  Rb2 {[%clk 0:00:02]} 46. Nd6 {[%clk 0:00:18]}  h5 {[%clk 0:00:03]} 47. Nf5 {[%clk 0:00:14]}  h4 {[%clk 0:00:01]} 48. N5xh4 {[%clk 0:00:13]} 1-0


[Site "https://www.chess.com"]